bitfinex/quotes_BTCUSD_20240929
["timestamp","ask_amount","ask_price","bid_price","bid_amount"]
[1727605507790,0.47327037,65643.0,65636.0,0.0773]
[1727605508041,0.4194322,65643.0,65636.0,0.0773]
[1727605509196,0.41922166,65643.0,65636.0,0.0773]
[1727605509863,0.44310427,65643.0,65636.0,0.0773]
[1727605510767,0.59949233,65643.0,65636.0,0.0773]
[1727605510989,0.61009813,65643.0,65636.0,0.0773]
[1727605512336,0.58621552,65643.0,65636.0,0.0773]
[1727605514951,0.59031552,65643.0,65636.0,0.0773]
[1727605515841,0.59024493,65643.0,65636.0,0.0773]
[1727605516063,0.58624493,65643.0,65636.0,0.0773]
[1727605516348,0.58024493,65643.0,65636.0,0.0773]
[1727605516566,0.58524493,65643.0,65636.0,0.0773]
[1727605516985,0.58024493,65643.0,65636.0,0.0773]
[1727605517207,0.59424493,65643.0,65636.0,0.0773]
[1727605517418,0.58624493,65643.0,65636.0,0.0773]
[1727605517630,0.58024493,65643.0,65636.0,0.0773]
[1727605517858,0.58824493,65643.0,65636.0,0.0773]
[1727605519007,0.59524493,65643.0,65636.0,0.0773]
[1727605519426,0.58824493,65643.0,65636.0,0.0773]
[1727605519667,0.58024493,65643.0,65636.0,0.0773]
[1727605519878,0.61212778,65643.0,65636.0,0.0773]
[1727605520116,0.62112778,65643.0,65636.0,0.0773]
[1727605520333,0.61212778,65643.0,65636.0,0.0773]
[1727605520552,0.61212778,65643.0,65632.0,0.175627]
[1727605520771,0.62212778,65643.0,65632.0,0.175627]
[1727605521015,0.56303972,65643.0,65632.0,0.175627]
[1727605522391,0.53915687,65643.0,65632.0,0.175627]
[1727605525275,0.56303974,65643.0,65632.0,0.175627]
[1727605526633,0.53915687,65643.0,65632.0,0.175627]
[1727605526854,0.69554493,65643.0,65632.0,0.175627]
[1727605527298,0.68754493,65643.0,65632.0,0.175627]
[1727605527520,0.68654493,65643.0,65632.0,0.175627]
[1727605528883,0.69754493,65643.0,65632.0,0.175627]
[1727605529125,0.44385687,65643.0,65632.0,0.175627]
[1727605531067,0.46773962,65643.0,65632.0,0.175627]
[1727605531974,0.4676528,65643.0,65632.0,0.175627]
[1727605533059,0.44377005,65643.0,65632.0,0.175627]
[1727605533919,0.60015811,65643.0,65632.0,0.175627]
[1727605534806,0.44377005,65643.0,65632.0,0.175627]
[1727605540777,0.46765271,65643.0,65632.0,0.175627]
[1727605542750,0.46868209,65643.0,65632.0,0.175627]
[1727605543428,0.44479943,65643.0,65632.0,0.175627]
[1727605546407,0.46868216,65643.0,65632.0,0.175627]
[1727605547304,0.62507022,65643.0,65632.0,0.175627]
[1727605547513,0.46868216,65643.0,65632.0,0.175627]
[1727605547731,0.44482433,65643.0,65632.0,0.175627]
[1727605552142,0.46870703,65643.0,65632.0,0.175627]
[1727605555250,0.44482433,65643.0,65632.0,0.175627]
[1727605555470,0.44072433,65643.0,65637.0,0.0826]
[1727605561124,0.44120653,65643.0,65637.0,0.0826]
[1727605562702,0.46508875,65643.0,65637.0,0.0826]
[1727605563834,0.44120653,65643.0,65637.0,0.0826]
[1727605565369,0.44117523,65643.0,65637.0,0.0826]
[1727605571138,0.46505756,65643.0,65637.0,0.0826]
[1727605572568,0.44505756,65643.0,65637.0,0.0826]
[1727605573022,0.45205756,65643.0,65637.0,0.0826]
[1727605573444,0.46105756,65643.0,65637.0,0.0826]
[1727605575211,0.46099494,65643.0,65637.0,0.0826]
[1727605578248,0.43711261,65643.0,65637.0,0.0826]
[1727605582521,0.4609949,65643.0,65637.0,0.0826]
[1727605585823,0.43711261,65643.0,65637.0,0.0826]
[1727605589216,0.46099512,65643.0,65637.0,0.0826]
[1727605589412,0.46102493,65643.0,65637.0,0.0826]
[1727605590347,0.43714242,65643.0,65637.0,0.0826]
[1727605592217,0.43710315,65643.0,65637.0,0.0826]
[1727605593168,0.46098568,65643.0,65637.0,0.0826]
[1727605596269,0.46098568,65643.0,65632.0,0.000827]
[1727605596270,0.0041,65639.0,65632.0,0.000827]
[1727605596495,0.40755049,65639.0,65632.0,0.000827]
[1727605596985,0.41195613,65639.0,65632.0,0.000827]
[1727605597236,0.42789993,65639.0,65632.0,0.000827]
[1727605597686,0.43289993,65639.0,65632.0,0.000827]
[1727605597914,0.43589993,65639.0,65632.0,0.000827]
[1727605599046,0.43499961,65639.0,65632.0,0.000827]
[1727605599710,0.59138767,65639.0,65632.0,0.000827]
[1727605600148,0.61527191,65639.0,65632.0,0.000827]
[1727605600595,0.59138767,65639.0,65632.0,0.000827]
[1727605603727,0.82510649,65639.0,65632.0,0.000827]
[1727605603946,0.61508503,65639.0,65632.0,0.000827]
[1727605604373,0.45869697,65639.0,65632.0,0.000827]
[1727605606412,0.55619697,65639.0,65632.0,0.000827]
[1727605607546,0.63509697,65639.0,65638.0,2.1e-07]
[1727605607975,0.61121277,65639.0,65638.0,2.1e-07]
[1727605608170,0.66759479,65639.0,65638.0,2.1e-07]
[1727605609830,0.82398285,65639.0,65638.0,2.1e-07]
[1727605610051,1.03400431,65639.0,65638.0,2.1e-07]
[1727605610685,1.03565831,65639.0,65638.0,2.1e-07]
[1727605611317,0.0041,65637.0,65632.0,0.000827]
[1727605611533,0.87921031,65639.0,65632.0,0.000827]
[1727605611534,0.436462,65633.0,65632.0,0.000827]
[1727605611763,0.58647733,65633.0,65632.0,0.000827]
[1727605612001,0.59084948,65633.0,65632.0,0.000827]
[1727605612257,0.59350411,65633.0,65632.0,0.000827]
[1727605612490,0.59350411,65633.0,65612.0,0.11756158]
[1727605612491,0.152408,65613.0,65612.0,0.11756158]
[1727605612700,0.19792325,65613.0,65612.0,0.11756158]
[1727605612912,0.457233,65612.0,65610.0,0.0975]
[1727605613145,0.152413,65611.0,65610.0,0.0975]
[1727605613378,0.15678198,65611.0,65610.0,0.0975]
[1727605614260,0.15778198,65611.0,65610.0,0.0975]
[1727605614451,0.15878198,65611.0,65610.0,0.0975]
[1727605615368,0.15878198,65611.0,65610.0,0.1756]
[1727605618981,0.18267139,65611.0,65610.0,0.1756]
[1727605622346,0.15878198,65611.0,65610.0,0.1756]
[1727605623012,0.00636898,65611.0,65610.0,0.1756]
[1727605623239,0.007833,65611.0,65610.0,0.1756]
[1727605623722,0.160246,65611.0,65610.0,0.1756]
[1727605623933,0.160246,65611.0,65610.0,0.176427]
[1727605625954,0.007833,65611.0,65610.0,0.2106963]
[1727605626185,0.007833,65611.0,65610.0,0.328842]
[1727605626428,0.002,65611.0,65610.0,0.328842]
[1727605626679,0.0078252,65611.0,65610.0,0.328842]
[1727605626928,0.002,65611.0,65610.0,0.328842]
[1727605627170,0.0078252,65611.0,65610.0,0.328842]
[1727605627409,0.002,65611.0,65610.0,0.328842]
[1727605627723,0.002,65611.0,65610.0,0.4260786]
[1727605628220,0.0078252,65611.0,65610.0,0.4260786]
[1727605628448,0.002,65611.0,65610.0,0.4260786]
[1727605628681,0.0078252,65611.0,65610.0,0.330842]
[1727605628920,0.002,65611.0,65610.0,0.330842]
[1727605629148,0.0078252,65611.0,65610.0,0.330842]
[1727605629376,0.002,65611.0,65610.0,0.330842]
[1727605630051,0.00784124,65611.0,65610.0,0.328842]
[1727605630276,0.002,65611.0,65610.0,0.328842]
[1727605630513,0.00784124,65611.0,65610.0,0.328842]
[1727605630936,0.00784124,65611.0,65610.0,0.330842]
[1727605632473,0.00784124,65611.0,65610.0,0.328842]
[1727605632692,0.00784124,65611.0,65610.0,0.330842]
[1727605633119,0.00784124,65611.0,65610.0,0.449279]
[1727605633341,0.00784124,65611.0,65610.0,0.447279]
[1727605633552,0.002,65611.0,65610.0,0.447279]
[1727605633765,0.002,65611.0,65610.0,0.449279]
[1727605634240,0.00784124,65611.0,65610.0,0.447279]
[1727605634471,0.002,65611.0,65610.0,0.447279]
[1727605634681,0.002,65611.0,65610.0,0.351842]
[1727605634682,0.00784124,65611.0,65610.0,0.351842]
[1727605634911,0.002,65611.0,65610.0,0.351842]
[1727605635380,0.00784124,65611.0,65610.0,0.351842]
[1727605635603,0.002,65611.0,65610.0,0.351842]
[1727605635814,0.00784124,65611.0,65610.0,0.351842]
[1727605636072,0.002,65611.0,65610.0,0.351842]
[1727605636279,0.00784124,65611.0,65610.0,0.351842]
[1727605636741,0.00784124,65611.0,65610.0,0.199427]
[1727605639571,0.00684124,65611.0,65610.0,0.199427]
[1727605640220,0.00784124,65611.0,65610.0,0.199427]
[1727605640485,0.00784124,65611.0,65610.0,0.201427]
[1727605642475,0.00784124,65611.0,65610.0,0.199427]
[1727605646722,0.00784124,65611.0,65610.0,0.201427]
[1727605647149,0.00784124,65611.0,65610.0,0.353842]
[1727605647808,0.002,65611.0,65610.0,0.353842]
[1727605648017,0.00784287,65611.0,65610.0,0.353842]
[1727605648249,0.002,65611.0,65610.0,0.353842]
[1727605648473,0.00784287,65611.0,65610.0,0.353842]
[1727605648690,0.002,65611.0,65610.0,0.353842]
[1727605648916,0.00784287,65611.0,65610.0,0.353842]
[1727605651780,0.00784287,65611.0,65610.0,0.4520792]
[1727605652908,0.002,65611.0,65610.0,0.4520792]
[1727605654772,0.002,65611.0,65610.0,0.353842]
[1727605655235,0.0025,65611.0,65610.0,0.353842]
[1727605656419,0.0025,65611.0,65610.0,0.50912994]
[1727605658036,0.0025,65611.0,65610.0,0.52784877]
[1727605663593,0.0025,65611.0,65610.0,0.53284877]
[1727605663798,0.0025,65611.0,65610.0,0.64948665]
[1727605664230,0.0025,65611.0,65610.0,0.66545787]
[1727605664442,0.0025,65611.0,65610.0,0.77045787]
[1727605664656,0.0025,65611.0,65610.0,0.81618423]
[1727605665134,0.0015,65611.0,65610.0,0.81618423]
[1727605665324,0.0005,65611.0,65610.0,0.75173904]
[1727605665547,0.0005,65611.0,65610.0,0.81595718]
[1727605665761,0.0025,65611.0,65610.0,0.83995718]
[1727605666008,0.0015,65611.0,65610.0,0.82795718]
[1727605666229,0.0005,65611.0,65610.0,0.81595718]
[1727605666478,0.0005,65611.0,65610.0,0.77025963]
[1727605666677,0.0025,65611.0,65610.0,0.79425963]
[1727605673175,0.0025,65611.0,65610.0,0.77573904]
[1727605675124,0.0025,65611.0,65610.0,0.83681004]
[1727605680909,0.0025,65611.0,65610.0,0.77573904]
[1727605692594,0.0015,65611.0,65610.0,0.76373904]
[1727605693016,0.0025,65611.0,65610.0,0.77473904]
[1727605693471,0.0015,65611.0,65610.0,0.8084004]
[1727605693700,0.0025,65611.0,65610.0,0.8204004]
[1727605694165,0.0025,65611.0,65610.0,0.8084004]
[1727605694166,0.0015,65611.0,65610.0,0.8084004]
[1727605694403,0.0015,65611.0,65610.0,0.8204004]
[1727605694633,0.0025,65611.0,65610.0,0.8204004]
[1727605695574,0.0025,65611.0,65610.0,0.87535967]
[1727605695819,0.0025,65611.0,65610.0,0.8753815]
[1727605697599,0.0025,65611.0,65610.0,0.82969831]
[1727605699566,0.0025,65611.0,65610.0,0.8982231]
[1727605700698,0.0025,65611.0,65610.0,1.08578932]
[1727605701389,0.0025,65611.0,65610.0,1.08581378]
[1727605701834,0.0025,65611.0,65610.0,1.01728899]
[1727605702062,0.0025,65611.0,65610.0,1.08586334]
[1727605702520,0.0025,65611.0,65610.0,1.01728899]
[1727605703450,0.0025,65611.0,65610.0,1.10865538]
[1727605703875,0.0025,65611.0,65610.0,1.01728899]
[1727605704556,0.0025,65611.0,65610.0,1.10865538]
[1727605706540,0.0025,65611.0,65610.0,1.01728899]
[1727605707677,0.0025,65611.0,65610.0,1.13149698]
[1727605708662,0.0025,65611.0,65610.0,1.01728899]
[1727605709093,0.0025,65611.0,65610.0,1.13171374]
[1727605709521,0.0025,65611.0,65610.0,1.01728899]
[1727605711606,0.0025,65611.0,65610.0,1.05369213]
[1727605712020,0.0025,65611.0,65610.0,1.01728899]
[1727605712449,0.0025,65611.0,65610.0,1.0182143]
[1727605712874,0.0025,65611.0,65610.0,1.0172223]
[1727605720046,0.0025,65611.0,65610.0,1.01623236]
[1727605720711,0.0025,65611.0,65610.0,0.93813236]
[1727605724919,0.0025,65611.0,65610.0,0.9491149]
[1727605725154,0.0025,65611.0,65610.0,0.87826251]
[1727605725366,0.0025,65611.0,65610.0,0.78466509]
[1727605725588,0.00930902,65611.0,65610.0,0.66782432]
[1727605725807,0.00930902,65611.0,65610.0,0.59913904]
[1727605726000,0.0025,65611.0,65610.0,0.59913904]
[1727605726259,0.0025,65611.0,65610.0,0.64493058]
[1727605726474,0.0025,65611.0,65610.0,0.85592675]
[1727605726895,0.0025,65611.0,65610.0,0.78724763]
[1727605727329,0.0025,65611.0,65610.0,0.85592586]
[1727605727563,0.0025,65611.0,65610.0,0.66781727]
[1727605728284,0.0025,65611.0,65610.0,0.85556192]
[1727605728526,0.0025,65611.0,65610.0,0.64491674]
[1727605728737,0.004154,65611.0,65610.0,0.59913904]
[1727605729170,0.004154,65611.0,65610.0,0.64491619]
[1727605729612,0.004154,65611.0,65610.0,0.59913904]
[1727605729837,0.002154,65611.0,65610.0,0.62191255]
[1727605730051,0.002154,65611.0,65610.0,0.63591255]
[1727605730944,0.002154,65611.0,65610.0,0.64991255]
[1727605731190,0.002154,65611.0,65610.0,0.60413904]
[1727605731872,0.002154,65611.0,65610.0,0.59013904]
[1727605732085,0.002154,65611.0,65610.0,0.58813904]
[1727605732358,0.002154,65611.0,65610.0,0.60413904]
[1727605735308,0.002154,65611.0,65610.0,0.60213904]
[1727605736660,0.002154,65611.0,65610.0,0.44972404]
[1727605742757,0.00890981,65611.0,65610.0,0.44972404]
[1727605743587,0.002154,65611.0,65610.0,0.44972404]
[1727605743801,0.00890981,65611.0,65610.0,0.44972404]
[1727605744871,0.00890981,65611.0,65610.0,0.34472404]
[1727605745102,0.33792281,65611.0,65610.0,0.21211494]
[1727605745328,0.18550981,65611.0,65610.0,0.21211494]
[1727605745753,0.18550981,65611.0,65610.0,0.19811494]
[1727605745968,0.18550981,65611.0,65610.0,0.21211494]
[1727605746400,0.18550981,65611.0,65610.0,0.19811494]
[1727605746616,0.18550981,65611.0,65610.0,0.2394667]
[1727605746853,0.18550981,65611.0,65610.0,0.2534667]
[1727605747264,0.18660981,65611.0,65610.0,0.2534667]
[1727605747897,0.18660981,65611.0,65610.0,0.2484667]
[1727605748103,0.18660981,65611.0,65610.0,0.2534667]
[1727605753671,0.179854,65611.0,65610.0,0.2534667]
[1727605753920,0.179854,65611.0,65610.0,0.4058817]
[1727605753921,0.18660024,65611.0,65610.0,0.4058817]
[1727605754849,0.18660024,65611.0,65610.0,0.4008817]
[1727605755079,0.179854,65611.0,65610.0,0.4058817]
[1727605755330,0.18659105,65611.0,65610.0,0.4058817]
[1727605761508,0.18659105,65611.0,65610.0,0.4008817]
[1727605761725,0.18659105,65611.0,65610.0,0.4058817]
[1727605765587,0.18659105,65611.0,65610.0,0.4008817]
[1727605765791,0.18659105,65611.0,65610.0,0.4058817]
[1727605766209,0.18659105,65611.0,65610.0,0.4008817]
[1727605766412,0.18659105,65611.0,65610.0,0.4058817]
[1727605768875,0.18659105,65611.0,65610.0,0.2534667]
[1727605770174,0.18659105,65611.0,65610.0,0.4058817]
[1727605770382,0.00999105,65611.0,65610.0,0.4058817]
[1727605770587,0.00999105,65611.0,65610.0,0.2534667]
[1727605773394,0.00999105,65611.0,65610.0,0.4058817]
[1727605774495,0.00999105,65611.0,65610.0,0.2534667]
[1727605776218,0.00999105,65611.0,65610.0,0.4058817]
[1727605776874,0.00999105,65611.0,65610.0,0.2534667]
[1727605777085,0.00999105,65611.0,65610.0,0.4058817]
[1727605777294,0.00999105,65611.0,65610.0,0.2534667]
[1727605777948,0.00999105,65611.0,65610.0,0.2484667]
[1727605783378,0.00999105,65611.0,65610.0,0.20711494]
[1727605784996,0.00999105,65611.0,65610.0,0.35952994]
[1727605785211,0.00999105,65611.0,65610.0,0.20711494]
[1727605786091,0.00999105,65611.0,65610.0,0.35952994]
[1727605788425,0.00999105,65611.0,65610.0,0.20711494]
[1727605788940,0.00999105,65611.0,65610.0,0.31257025]
[1727605790312,0.00999105,65611.0,65610.0,0.46498525]
[1727605790759,0.00999105,65611.0,65610.0,0.31257025]
[1727605791223,0.00999105,65611.0,65610.0,0.20711494]
[1727605795183,0.00999105,65611.0,65610.0,0.35952994]
[1727605800960,0.00999105,65611.0,65610.0,0.37735234]
[1727605802354,0.00999105,65611.0,65610.0,0.35952994]
[1727605805804,0.00999105,65611.0,65610.0,0.45942994]
[1727605806023,0.00999105,65611.0,65610.0,0.615818]
[1727605806899,0.00999105,65611.0,65610.0,0.617818]
[1727605807771,0.00999105,65611.0,65610.0,0.615818]
[1727605808423,0.00999105,65611.0,65610.0,0.515918]
[1727605809308,0.00999105,65611.0,65610.0,0.35952994]
[1727605811108,0.00999105,65611.0,65610.0,0.37741438]
[1727605814647,0.0059461,65611.0,65610.0,0.37741438]
[1727605817548,0.001654,65612.0,65611.0,0.152413]
[1727605817786,0.001654,65612.0,65611.0,0.33070094]
[1727605818080,0.001654,65612.0,65611.0,0.43707321]
[1727605819008,0.001654,65612.0,65611.0,0.45107321]
[1727605820178,0.001654,65612.0,65611.0,0.46507321]
[1727605821434,0.001654,65612.0,65611.0,0.3764419]
[1727605823353,0.001654,65612.0,65611.0,0.35870094]
[1727605825143,0.001654,65612.0,65611.0,0.37643664]
[1727605827559,0.095354,65612.0,65611.0,0.37643664]
[1727605828441,0.001654,65612.0,65611.0,0.37643664]
[1727605829321,0.001654,65612.0,65611.0,0.22402364]
[1727605829998,0.001654,65612.0,65611.0,0.37643664]
[1727605834669,0.001654,65612.0,65611.0,0.22402364]
[1727605834889,0.247265,65612.0,65611.0,0.0457357]
[1727605836253,0.247265,65612.0,65611.0,0.0687357]
[1727605837570,0.247265,65612.0,65611.0,0.051]
[1727605846034,0.247265,65612.0,65611.0,0.051827]
[1727605860378,0.154065,65612.0,65611.0,0.051827]
[1727605867389,0.001654,65612.0,65611.0,0.051827]
[1727605867597,0.154065,65612.0,65611.0,0.051827]
[1727605869991,0.001654,65612.0,65611.0,0.051827]
[1727605870209,0.154065,65612.0,65611.0,0.051827]
[1727605872925,0.001654,65612.0,65611.0,0.051827]
[1727605873133,0.154065,65612.0,65611.0,0.051827]
[1727605875101,0.001654,65612.0,65611.0,0.051827]
[1727605875306,0.154065,65612.0,65611.0,0.051827]
[1727605875787,0.001654,65612.0,65611.0,0.051827]
[1727605876008,0.001654,65612.0,65611.0,0.0894613]
[1727605876453,0.001654,65612.0,65611.0,0.2418743]
[1727605876697,0.001654,65612.0,65611.0,0.47546224]
[1727605879027,0.001654,65612.0,65611.0,0.47746224]
[1727605880416,0.001654,65612.0,65611.0,0.47546224]
[1727605880641,0.001654,65612.0,65611.0,0.47746224]
[1727605881098,0.001654,65612.0,65611.0,0.47546224]
[1727605881798,0.001654,65612.0,65611.0,0.47746224]
[1727605882045,0.001654,65612.0,65611.0,0.47546224]
[1727605882274,0.001654,65612.0,65611.0,0.47746224]
[1727605884285,0.001654,65612.0,65611.0,0.47546224]
[1727605886777,0.001654,65612.0,65611.0,0.47746224]
[1727605887042,0.001654,65612.0,65611.0,0.39916224]
[1727605887304,0.001654,65612.0,65611.0,0.39716224]
[1727605887732,0.001654,65612.0,65611.0,0.39916224]
[1727605887949,0.001654,65612.0,65611.0,0.37116224]
[1727605888161,0.001654,65612.0,65611.0,0.36152794]
[1727605888859,0.001654,65612.0,65611.0,0.34752794]
[1727605889090,0.001654,65612.0,65611.0,0.36152794]
[1727605889529,0.001654,65612.0,65611.0,0.34752794]
[1727605891324,0.001654,65612.0,65611.0,0.36152794]
[1727605895884,0.001654,65612.0,65611.0,0.35952794]
[1727605897002,0.001654,65612.0,65611.0,0.4717522]
[1727605900812,0.001654,65612.0,65611.0,0.4737522]
[1727605903269,0.001654,65612.0,65611.0,0.49149991]
[1727605903479,0.001654,65612.0,65611.0,0.4737522]
[1727605906673,0.001654,65612.0,65611.0,0.49168193]
[1727605907577,0.001654,65612.0,65611.0,0.5667522]
[1727605908025,0.001654,65612.0,65611.0,0.45452794]
[1727605908288,0.001654,65612.0,65611.0,0.46952794]
[1727605908738,0.001654,65612.0,65611.0,0.48745065]
[1727605909210,0.001654,65612.0,65611.0,0.49821557]
[1727605909873,0.001654,65612.0,65611.0,0.48421557]
[1727605910094,0.001654,65612.0,65611.0,0.47021557]
[1727605910324,0.001654,65612.0,65611.0,0.62390261]
[1727605910553,0.001654,65612.0,65611.0,0.63790261]
[1727605910796,0.001654,65612.0,65611.0,0.62390261]
[1727605911020,0.001654,65612.0,65611.0,0.60990261]
[1727605911259,0.001654,65612.0,65611.0,0.63790261]
[1727605911491,0.001654,65612.0,65611.0,0.68365165]
[1727605911729,0.001654,65612.0,65611.0,0.66572894]
[1727605911974,0.001654,65612.0,65611.0,0.7029799]
[1727605912638,0.001654,65612.0,65611.0,0.7487198]
[1727605913550,0.001654,65612.0,65611.0,0.7347198]
[1727605913773,0.001654,65612.0,65611.0,0.7487198]
[1727605913992,0.001654,65612.0,65611.0,0.7347198]
[1727605914612,0.001654,65612.0,65611.0,0.7487198]
[1727605915071,0.001654,65612.0,65611.0,0.7347198]
[1727605915282,0.001654,65612.0,65611.0,0.7487198]
[1727605917561,0.001654,65612.0,65611.0,0.7347198]
[1727605918471,0.001654,65612.0,65611.0,0.6889799]
[1727605918890,0.001654,65612.0,65611.0,0.70709274]
[1727605919145,0.001654,65612.0,65611.0,0.72109274]
[1727605919377,0.001654,65612.0,65611.0,0.76683264]
[1727605919595,0.001654,65612.0,65611.0,0.75283363]
[1727605920047,0.001654,65612.0,65611.0,0.76683363]
[1727605920949,0.001654,65612.0,65611.0,0.72109373]
[1727605921162,0.001654,65612.0,65611.0,0.766822]
[1727605922147,0.001654,65612.0,65611.0,1.00778406]
[1727605922265,0.001654,65612.0,65611.0,1.06271992]
[1727605922496,0.001654,65612.0,65611.0,1.17701338]
[1727605922735,0.001654,65612.0,65611.0,1.16301338]
[1727605922960,0.001654,65612.0,65611.0,1.04871992]
[1727605923195,0.001654,65612.0,65611.0,1.06271992]
[1727605923439,0.001654,65612.0,65611.0,1.17699165]
[1727605923693,0.001654,65612.0,65611.0,1.16299165]
[1727605924172,0.001654,65612.0,65611.0,1.17699165]
[1727605924400,0.001654,65612.0,65611.0,1.14487782]
[1727605924654,0.001654,65612.0,65611.0,1.15887782]
[1727605924870,0.001654,65612.0,65611.0,1.14487782]
[1727605925100,0.001654,65612.0,65611.0,1.14583543]
[1727605925593,0.001654,65612.0,65611.0,1.15983543]
[1727605926064,0.001654,65612.0,65611.0,1.14583543]
[1727605926311,0.001654,65612.0,65611.0,1.15983543]
[1727605926535,0.001654,65612.0,65611.0,1.0455803]
[1727605928447,0.001654,65612.0,65611.0,1.13694228]
[1727605928718,0.001654,65612.0,65611.0,1.08200642]
[1727605932453,0.001654,65612.0,65611.0,1.05400642]
[1727605932901,0.001654,65612.0,65611.0,1.06800642]
[1727605933576,0.001654,65612.0,65611.0,0.97664444]
[1727605934071,0.001654,65612.0,65611.0,0.99064444]
[1727605934979,0.001654,65612.0,65611.0,0.97664444]
[1727605935481,0.001654,65612.0,65611.0,1.04552397]
[1727605935907,0.001654,65612.0,65611.0,1.03152397]
[1727605936143,0.001654,65612.0,65611.0,1.04552397]
[1727605939381,0.001654,65612.0,65611.0,1.03158401]
[1727605939805,0.001654,65612.0,65611.0,1.04558401]
[1727605940901,0.001654,65612.0,65611.0,1.03158401]
[1727605941122,0.001654,65612.0,65611.0,1.04558401]
[1727605942430,0.001654,65612.0,65611.0,1.13690636]
[1727605942655,0.001654,65612.0,65611.0,1.12290636]
[1727605942902,0.001654,65612.0,65611.0,1.13690636]
[1727605944009,0.001654,65612.0,65611.0,1.12290636]
[1727605944261,0.001654,65612.0,65611.0,1.13690636]
[1727605947243,0.001654,65612.0,65611.0,1.04358401]
[1727605947453,0.001654,65612.0,65611.0,1.02958401]
[1727605947673,0.001654,65612.0,65611.0,1.03158401]
[1727605948104,0.001654,65612.0,65611.0,1.01758401]
[1727605948613,0.001654,65612.0,65611.0,1.14573694]
[1727605948848,0.001654,65612.0,65611.0,1.15973694]
[1727605949113,0.001654,65612.0,65611.0,1.17373694]
[1727605949346,0.001654,65612.0,65611.0,1.15973694]
[1727605949576,0.001654,65612.0,65611.0,1.17373694]
[1727605950453,0.001654,65612.0,65611.0,1.05958401]
[1727605953221,0.001654,65612.0,65611.0,1.05987353]
[1727605957039,0.001654,65612.0,65611.0,1.19701457]
[1727605957258,0.22690658,65625.0,65624.0,0.159383]
[1727605957471,0.22690658,65625.0,65624.0,0.40255047]
[1727605957683,0.22690658,65625.0,65624.0,0.58484469]
[1727605957931,0.1703,65628.0,65627.0,0.002]
[1727605958150,0.1703,65628.0,65627.0,0.33266394]
[1727605958413,0.22690658,65632.0,65631.0,0.002]
[1727605958639,0.0823,65632.0,65631.0,0.33265494]
[1727605959076,0.1736,65632.0,65631.0,0.33265494]
[1727605961044,0.1736,65632.0,65631.0,0.34665494]
[1727605961261,0.1736,65632.0,65631.0,0.45990642]
[1727605963246,0.1736,65632.0,65631.0,0.44590642]
[1727605963460,0.1736,65632.0,65631.0,0.45990642]
[1727605963903,0.1736,65632.0,65631.0,0.44590642]
[1727605964120,0.1736,65632.0,65631.0,0.43190642]
[1727605964369,0.1736,65632.0,65631.0,0.44590642]
[1727605964584,0.1736,65632.0,65631.0,0.45990642]
[1727605964805,0.1736,65632.0,65631.0,0.44590642]
[1727605965245,0.1736,65632.0,65631.0,0.45990642]
[1727605972180,0.1736,65632.0,65631.0,0.45790642]
[1727605972411,0.175254,65632.0,65631.0,0.45990642]
[1727605976587,0.175254,65632.0,65631.0,0.45790642]
[1727605976832,0.175254,65632.0,65631.0,0.45990642]
[1727605977049,0.175254,65632.0,65631.0,0.45790642]
[1727605977261,0.175254,65632.0,65631.0,0.45990642]
[1727605977485,0.175254,65632.0,65631.0,0.44590642]
[1727605977714,0.175254,65632.0,65631.0,0.43190642]
[1727605977935,0.175254,65632.0,65631.0,0.44590642]
[1727605978176,0.175254,65632.0,65631.0,0.45990642]
[1727605978391,0.175254,65632.0,65631.0,0.44390642]
[1727605978614,0.175254,65632.0,65631.0,0.44590642]
[1727605979761,0.175254,65632.0,65631.0,0.45990642]
[1727605980543,0.175254,65632.0,65631.0,0.45790642]
[1727605980769,0.175254,65632.0,65631.0,0.45990642]
[1727605982340,0.175254,65632.0,65631.0,0.45790642]
[1727605985050,0.175254,65632.0,65631.0,0.45990642]
[1727605985729,0.175254,65632.0,65631.0,0.45790642]
[1727605985947,0.175254,65632.0,65631.0,0.45990642]
[1727605988860,0.175254,65632.0,65631.0,0.47797731]
[1727605989529,0.175254,65632.0,65631.0,0.45990642]
[1727605990227,0.175254,65632.0,65631.0,0.45790642]
[1727605990444,0.175254,65632.0,65631.0,0.45990642]
[1727605991097,0.175254,65632.0,65631.0,0.45790642]
[1727605991308,0.175254,65632.0,65631.0,0.45990642]
[1727605992167,0.175254,65632.0,65631.0,0.47597667]
[1727605992601,0.175254,65632.0,65631.0,0.47797667]
[1727605992844,0.175254,65632.0,65631.0,0.46397667]
[1727605993288,0.175254,65632.0,65631.0,0.47797667]
[1727605993514,0.175254,65632.0,65631.0,0.46397667]
[1727605993741,0.175254,65632.0,65631.0,0.44997667]
[1727605993940,0.175254,65632.0,65631.0,0.46197667]
[1727605994211,0.175254,65632.0,65631.0,0.46397667]
[1727605994443,0.175254,65632.0,65631.0,0.47597667]
[1727605994669,0.175254,65632.0,65631.0,0.47797667]
[1727605996078,0.001654,65632.0,65631.0,0.47797667]
[1727605997872,0.001654,65632.0,65631.0,0.45990642]
[1727605998086,0.001654,65632.0,65631.0,0.47798074]
[1727605998977,0.001654,65632.0,65631.0,0.47598074]
[1727605999396,0.001654,65632.0,65631.0,0.47798074]
[1727606002457,0.001654,65632.0,65631.0,0.52369329]
[1727606004294,0.001654,65632.0,65631.0,0.73551942]
[1727606004955,0.001654,65632.0,65631.0,0.73534509]
[1727606006263,0.001654,65632.0,65631.0,0.72168841]
[1727606006727,0.001654,65632.0,65631.0,0.72142041]
[1727606008302,0.001654,65632.0,65631.0,0.72132367]
[1727606008747,0.001654,65632.0,65631.0,0.70334609]
[1727606008975,0.001654,65632.0,65631.0,0.72132349]
[1727606009414,0.001654,65632.0,65631.0,0.66631588]
[1727606009636,0.001654,65632.0,65631.0,0.72130913]
[1727606009854,0.001654,65632.0,65631.0,0.66631588]
[1727606010303,0.001654,65632.0,65631.0,0.72130913]
[1727606010525,0.001654,65632.0,65631.0,0.66631588]
[1727606011389,0.001654,65632.0,65631.0,0.7578475]
[1727606011787,0.001654,65632.0,65631.0,0.7558475]
[1727606012068,0.001654,65632.0,65631.0,0.47561582]
[1727606012280,0.001654,65632.0,65631.0,0.66407322]
[1727606012526,0.001654,65632.0,65631.0,0.66398248]
[1727606012756,0.001654,65632.0,65631.0,0.732633]